Workbook

Sheet LEAST SQUARE METHOD
B2: a0 | C2: a1 | D2: a2 | E2: a3 | F2: a4 | G2: a5 | H2: a6
B3: =LSM(0,$B$6:$B$26,$C$6:$C$26,0,1,0,1,0,1,1) -> 0 | C3: =LSM(1,$B$6:$B$26,$C$6:$C$26,0,1,0,1,0,1,1) -> 1.0111702 | D3: =LSM(2,$B$6:$B$26,$C$6:$C$26,0,1,0,1,0,1,1) -> 0 | E3: =LSM(3,$B$6:$B$26,$C$6:$C$26,0,1,0,1,0,1,1) -> -0.1909641179 | F3: =LSM(4,$B$6:$B$26,$C$6:$C$26,0,1,0,1,0,1,1) -> 0 | G3: =LSM(5,$B$6:$B$26,$C$6:$C$26,0,1,0,1,0,1,1) -> 0.01171563758 | H3: =LSM(6,$B$6:$B$26,$C$6:$C$26,0,1,0,1,0,1,1) -> -0.001190697425
B5: x | C5: y | D5: y-LSM
B6: 1e-10 | C6: 0.6958662306 | D6: =$B$3*(B6^0)+$C$3*(B6^1)+$D$3*(B6^2)+$E$3*(B6^3)+$F$3*(B6^4)+$G$3*(B6^5)+$H$3*(B6^6) -> 1.0111702e-10
B7: 0.3141592654 | C7: -0.05525991217 | D7: =$B$3*(B7^0)+$C$3*(B7^1)+$D$3*(B7^2)+$E$3*(B7^3)+$F$3*(B7^4)+$G$3*(B7^5)+$H$3*(B7^6) -> 0.3117821083
B8: 0.6283185307 | C8: 0.7240479412 | D8: =$B$3*(B8^0)+$C$3*(B8^1)+$D$3*(B8^2)+$E$3*(B8^3)+$F$3*(B8^4)+$G$3*(B8^5)+$H$3*(B8^6) -> 0.5890422908
B9: 0.9424777961 | C9: 1.737376269 | D9: 0.8010137027
B10: 1.256637061 | C10: 0.6469210346 | D10: 0.923748248
B11: 1.570796327 | C11: 1.434508882 | D11: 0.9423583359
B12: 1.884955592 | C12: 0.7500127742 | D12: 0.852434436
B13: 2.199114858 | C13: -0.5724820339 | D13: 0.6606384328
B14: 2.513274123 | C14: 0.6893186938 | D14: 0.3844727786
B15: 2.827433388 | C15: 0.0998085325 | D15: 0.05122544614
B16: 3.141592654 | C16: 0.02262458915 | D16: -0.3039093204
B17: 3.455751919 | C17: -0.8575431351 | D17: -0.6405344552
B18: 3.769911184 | C18: -0.8875341854 | D18: -0.9165777217
B19: 4.08407045 | C19: -0.7984236946 | D19: -1.092643564
B20: 4.398229715 | C20: -1.507883344 | D20: -1.13718916
B21: 4.71238898 | C21: -0.6092079502 | D21: -1.032524676
B22: 5.026548246 | C22: -1.146183309 | D22: -0.7816377199
B23: 5.340707511 | C23: -0.2392906873 | D23: -0.4158419986
B24: 5.654866776 | C24: 0.05728828015 | D24: -0.003250174294
B25: 5.969026042 | C25: 0.103371118 | D25: 0.3419290775
B26: 6.283185307 | C26: 0.5676431489 | D26: 0.4492698088

Sheet RANDOM WAVE GENERATOR
A1: x | B1: y | E1: 1 | F1: 2 | G1: 3 | H1: 4 | I1: 5 | J1: 6 | K1: 7 | L1: 8 | M1: 9 | N1: 10
A2: 0 | B2: =SIN($A2+2*PI()*$F$2)+$E$2*SUM($E$4:$N$4*SIN($A2*$E$5:$N$5*$E$6:$N$6+2*PI()*$E$3:$N$3)) -> 0.4184138704 | D2: a | E2: =0.3 -> 0.3 | F2: =RAND() -> 0.9997228705
A3: =2*PI()/1000+A2 -> 0.006283185307 | B3: =SIN($A3+2*PI()*$F$2)+$E$2*SUM($E$4:$N$4*SIN($A3*$E$5:$N$5*$E$6:$N$6+2*PI()*$E$3:$N$3)) -> 0.4810239586 | D3: b | E3: =RAND() -> 0.04291342311 | F3: =RAND() -> 0.6219921177 | G3: 0.7134753234 | H3: 0.4303667551 | I3: 0.2204439747 | J3: 0.58286378 | K3: 0.1708859927 | L3: 0.07155517785 | M3: 0.8790626661 | N3: 0.3337720063
A4: =2*PI()/1000+A3 -> 0.01256637061 | B4: =SIN($A4+2*PI()*$F$2)+$E$2*SUM($E$4:$N$4*SIN($A4*$E$5:$N$5*$E$6:$N$6+2*PI()*$E$3:$N$3)) -> -0.1388982705 | D4: c | E4: =RAND() -> 0.4186270251 | F4: =RAND() -> 0.03434118914 | G4: 0.1437037198 | H4: 0.6862760468 | I4: 0.9136239746 | J4: 0.6120619009 | K4: 0.4357008091 | L4: 0.6604813181 | M4: 0.5192579934 | N4: 0.2963118544
A5: 0.01884955592 | B5: =SIN($A5+2*PI()*$F$2)+$E$2*SUM($E$4:$N$4*SIN($A5*$E$5:$N$5*$E$6:$N$6+2*PI()*$E$3:$N$3)) -> 0.1452057358 | D5: d | E5: =1/RAND() -> 2.428908005 | F5: =1/RAND() -> 3.113883617 | G5: 1.314827346 | H5: 2.296477206 | I5: 2.32257971 | J5: 1.676168945 | K5: 2.702520797 | L5: 3.455694006 | M5: 5.649715834 | N5: 3.488605823
A6: 0.02513274123 | B6: =SIN($A6+2*PI()*$F$2)+$E$2*SUM($E$4:$N$4*SIN($A6*$E$5:$N$5*$E$6:$N$6+2*PI()*$E$3:$N$3)) -> -0.3543489356 | D6: 2^n | E6: 1 | F6: =E6*2 -> 2 | G6: =F6*2 -> 4 | H6: 8 | I6: 16 | J6: 32 | K6: 64 | L6: 128 | M6: 256 | N6: 512
A7: 0.03141592654 | B7: =SIN($A7+2*PI()*$F$2)+$E$2*SUM($E$4:$N$4*SIN($A7*$E$5:$N$5*$E$6:$N$6+2*PI()*$E$3:$N$3)) -> 0.4078214231
A8: 0.03769911184 | B8: =SIN($A8+2*PI()*$F$2)+$E$2*SUM($E$4:$N$4*SIN($A8*$E$5:$N$5*$E$6:$N$6+2*PI()*$E$3:$N$3)) -> -0.1277105587
A9: 0.04398229715 | B9: =SIN($A9+2*PI()*$F$2)+$E$2*SUM($E$4:$N$4*SIN($A9*$E$5:$N$5*$E$6:$N$6+2*PI()*$E$3:$N$3)) -> 0.135855299
A10: 0.05026548246 | B10: =SIN($A10+2*PI()*$F$2)+$E$2*SUM($E$4:$N$4*SIN($A10*$E$5:$N$5*$E$6:$N$6+2*PI()*$E$3:$N$3)) -> -0.2526598006
A11: 0.05654866776 | B11: =SIN($A11+2*PI()*$F$2)+$E$2*SUM($E$4:$N$4*SIN($A11*$E$5:$N$5*$E$6:$N$6+2*PI()*$E$3:$N$3)) -> -0.1953164763
A12: 0.06283185307 | B12: =SIN($A12+2*PI()*$F$2)+$E$2*SUM($E$4:$N$4*SIN($A12*$E$5:$N$5*$E$6:$N$6+2*PI()*$E$3:$N$3)) -> 0.04407074199
A13: 0.06911503838 | B13: =SIN($A13+2*PI()*$F$2)+$E$2*SUM($E$4:$N$4*SIN($A13*$E$5:$N$5*$E$6:$N$6+2*PI()*$E$3:$N$3)) -> -0.2998704762
A14: 0.07539822369 | B14: =SIN($A14+2*PI()*$F$2)+$E$2*SUM($E$4:$N$4*SIN($A14*$E$5:$N$5*$E$6:$N$6+2*PI()*$E$3:$N$3)) -> 0.1871151096
A15: 0.08168140899 | B15: =SIN($A15+2*PI()*$F$2)+$E$2*SUM($E$4:$N$4*SIN($A15*$E$5:$N$5*$E$6:$N$6+2*PI()*$E$3:$N$3)) -> -0.4636056888
A16: 0.0879645943 | B16: =SIN($A16+2*PI()*$F$2)+$E$2*SUM($E$4:$N$4*SIN($A16*$E$5:$N$5*$E$6:$N$6+2*PI()*$E$3:$N$3)) -> 0.1001526119
A17: 0.09424777961 | B17: =SIN($A17+2*PI()*$F$2)+$E$2*SUM($E$4:$N$4*SIN($A17*$E$5:$N$5*$E$6:$N$6+2*PI()*$E$3:$N$3)) -> -0.5752135513
A18: 0.1005309649 | B18: =SIN($A18+2*PI()*$F$2)+$E$2*SUM($E$4:$N$4*SIN($A18*$E$5:$N$5*$E$6:$N$6+2*PI()*$E$3:$N$3)) -> -0.1959327254
A19: 0.1068141502 | B19: =SIN($A19+2*PI()*$F$2)+$E$2*SUM($E$4:$N$4*SIN($A19*$E$5:$N$5*$E$6:$N$6+2*PI()*$E$3:$N$3)) -> -0.3768970373
A20: 0.1130973355 | B20: =SIN($A20+2*PI()*$F$2)+$E$2*SUM($E$4:$N$4*SIN($A20*$E$5:$N$5*$E$6:$N$6+2*PI()*$E$3:$N$3)) -> -0.2136733981
A21: 0.1193805208 | B21: =SIN($A21+2*PI()*$F$2)+$E$2*SUM($E$4:$N$4*SIN($A21*$E$5:$N$5*$E$6:$N$6+2*PI()*$E$3:$N$3)) -> -0.02685322386
A22: 0.1256637061 | B22: =SIN($A22+2*PI()*$F$2)+$E$2*SUM($E$4:$N$4*SIN($A22*$E$5:$N$5*$E$6:$N$6+2*PI()*$E$3:$N$3)) -> -0.5765146747
A23: 0.1319468915 | B23: =SIN($A23+2*PI()*$F$2)+$E$2*SUM($E$4:$N$4*SIN($A23*$E$5:$N$5*$E$6:$N$6+2*PI()*$E$3:$N$3)) -> -0.1031654262
A24: 0.1382300768 | B24: =SIN($A24+2*PI()*$F$2)+$E$2*SUM($E$4:$N$4*SIN($A24*$E$5:$N$5*$E$6:$N$6+2*PI()*$E$3:$N$3)) -> -0.5555071062
A25: 0.1445132621 | B25: =SIN($A25+2*PI()*$F$2)+$E$2*SUM($E$4:$N$4*SIN($A25*$E$5:$N$5*$E$6:$N$6+2*PI()*$E$3:$N$3)) -> 0.4315438395
A26: 0.1507964474 | B26: =SIN($A26+2*PI()*$F$2)+$E$2*SUM($E$4:$N$4*SIN($A26*$E$5:$N$5*$E$6:$N$6+2*PI()*$E$3:$N$3)) -> 0.006697947545
A27: 0.1570796327 | B27: =SIN($A27+2*PI()*$F$2)+$E$2*SUM($E$4:$N$4*SIN($A27*$E$5:$N$5*$E$6:$N$6+2*PI()*$E$3:$N$3)) -> 0.3678772849
A28: 0.163362818 | B28: =SIN($A28+2*PI()*$F$2)+$E$2*SUM($E$4:$N$4*SIN($A28*$E$5:$N$5*$E$6:$N$6+2*PI()*$E$3:$N$3)) -> 0.03564430849
A29: 0.1696460033 | B29: =SIN($A29+2*PI()*$F$2)+$E$2*SUM($E$4:$N$4*SIN($A29*$E$5:$N$5*$E$6:$N$6+2*PI()*$E$3:$N$3)) -> 0.2251278992
A30: 0.1759291886 | B30: =SIN($A30+2*PI()*$F$2)+$E$2*SUM($E$4:$N$4*SIN($A30*$E$5:$N$5*$E$6:$N$6+2*PI()*$E$3:$N$3)) -> 0.7544353475
A31: 0.1822123739 | B31: =SIN($A31+2*PI()*$F$2)+$E$2*SUM($E$4:$N$4*SIN($A31*$E$5:$N$5*$E$6:$N$6+2*PI()*$E$3:$N$3)) -> 0.5033910623
A32: 0.1884955592 | B32: =SIN($A32+2*PI()*$F$2)+$E$2*SUM($E$4:$N$4*SIN($A32*$E$5:$N$5*$E$6:$N$6+2*PI()*$E$3:$N$3)) -> 0.9902125522
A33: 0.1947787445 | B33: =SIN($A33+2*PI()*$F$2)+$E$2*SUM($E$4:$N$4*SIN($A33*$E$5:$N$5*$E$6:$N$6+2*PI()*$E$3:$N$3)) -> 0.1596526606
A34: 0.2010619298 | B34: =SIN($A34+2*PI()*$F$2)+$E$2*SUM($E$4:$N$4*SIN($A34*$E$5:$N$5*$E$6:$N$6+2*PI()*$E$3:$N$3)) -> 0.7993442051
A35: 0.2073451151 | B35: =SIN($A35+2*PI()*$F$2)+$E$2*SUM($E$4:$N$4*SIN($A35*$E$5:$N$5*$E$6:$N$6+2*PI()*$E$3:$N$3)) -> 0.2651326112
A36: 0.2136283004 | B36: =SIN($A36+2*PI()*$F$2)+$E$2*SUM($E$4:$N$4*SIN($A36*$E$5:$N$5*$E$6:$N$6+2*PI()*$E$3:$N$3)) -> 0.7177368129
A37: 0.2199114858 | B37: =SIN($A37+2*PI()*$F$2)+$E$2*SUM($E$4:$N$4*SIN($A37*$E$5:$N$5*$E$6:$N$6+2*PI()*$E$3:$N$3)) -> 0.3647847593
A38: 0.2261946711 | B38: =SIN($A38+2*PI()*$F$2)+$E$2*SUM($E$4:$N$4*SIN($A38*$E$5:$N$5*$E$6:$N$6+2*PI()*$E$3:$N$3)) -> 0.2340645344
A39: 0.2324778564 | B39: =SIN($A39+2*PI()*$F$2)+$E$2*SUM($E$4:$N$4*SIN($A39*$E$5:$N$5*$E$6:$N$6+2*PI()*$E$3:$N$3)) -> 0.3495047337
A40: 0.2387610417 | B40: =SIN($A40+2*PI()*$F$2)+$E$2*SUM($E$4:$N$4*SIN($A40*$E$5:$N$5*$E$6:$N$6+2*PI()*$E$3:$N$3)) -> -0.1940265405
A41: 0.245044227 | B41: =SIN($A41+2*PI()*$F$2)+$E$2*SUM($E$4:$N$4*SIN($A41*$E$5:$N$5*$E$6:$N$6+2*PI()*$E$3:$N$3)) -> 0.3294520516
A42: 0.2513274123 | B42: =SIN($A42+2*PI()*$F$2)+$E$2*SUM($E$4:$N$4*SIN($A42*$E$5:$N$5*$E$6:$N$6+2*PI()*$E$3:$N$3)) -> -0.3219491546
A43: 0.2576105976 | B43: =SIN($A43+2*PI()*$F$2)+$E$2*SUM($E$4:$N$4*SIN($A43*$E$5:$N$5*$E$6:$N$6+2*PI()*$E$3:$N$3)) -> 0.485245689
A44: 0.2638937829 | B44: =SIN($A44+2*PI()*$F$2)+$E$2*SUM($E$4:$N$4*SIN($A44*$E$5:$N$5*$E$6:$N$6+2*PI()*$E$3:$N$3)) -> -0.04286324796
A45: 0.2701769682 | B45: =SIN($A45+2*PI()*$F$2)+$E$2*SUM($E$4:$N$4*SIN($A45*$E$5:$N$5*$E$6:$N$6+2*PI()*$E$3:$N$3)) -> 0.3396949532
A46: 0.2764601535 | B46: =SIN($A46+2*PI()*$F$2)+$E$2*SUM($E$4:$N$4*SIN($A46*$E$5:$N$5*$E$6:$N$6+2*PI()*$E$3:$N$3)) -> 0.04917069138
A47: 0.2827433388 | B47: =SIN($A47+2*PI()*$F$2)+$E$2*SUM($E$4:$N$4*SIN($A47*$E$5:$N$5*$E$6:$N$6+2*PI()*$E$3:$N$3)) -> 0.203429039
A48: 0.2890265241 | B48: =SIN($A48+2*PI()*$F$2)+$E$2*SUM($E$4:$N$4*SIN($A48*$E$5:$N$5*$E$6:$N$6+2*PI()*$E$3:$N$3)) -> 0.7881676471
A49: 0.2953097094 | B49: =SIN($A49+2*PI()*$F$2)+$E$2*SUM($E$4:$N$4*SIN($A49*$E$5:$N$5*$E$6:$N$6+2*PI()*$E$3:$N$3)) -> 0.5686758255
A50: 0.3015928947 | B50: =SIN($A50+2*PI()*$F$2)+$E$2*SUM($E$4:$N$4*SIN($A50*$E$5:$N$5*$E$6:$N$6+2*PI()*$E$3:$N$3)) -> 1.132315414
A51: 0.3078760801 | B51: =SIN($A51+2*PI()*$F$2)+$E$2*SUM($E$4:$N$4*SIN($A51*$E$5:$N$5*$E$6:$N$6+2*PI()*$E$3:$N$3)) -> 0.2969720976
A52: 0.3141592654 | B52: =SIN($A52+2*PI()*$F$2)+$E$2*SUM($E$4:$N$4*SIN($A52*$E$5:$N$5*$E$6:$N$6+2*PI()*$E$3:$N$3)) -> 1.026767094
A53: 0.3204424507 | B53: =SIN($A53+2*PI()*$F$2)+$E$2*SUM($E$4:$N$4*SIN($A53*$E$5:$N$5*$E$6:$N$6+2*PI()*$E$3:$N$3)) -> 0.6811226859
A54: 0.326725636 | B54: =SIN($A54+2*PI()*$F$2)+$E$2*SUM($E$4:$N$4*SIN($A54*$E$5:$N$5*$E$6:$N$6+2*PI()*$E$3:$N$3)) -> 1.282735424
A55: 0.3330088213 | B55: =SIN($A55+2*PI()*$F$2)+$E$2*SUM($E$4:$N$4*SIN($A55*$E$5:$N$5*$E$6:$N$6+2*PI()*$E$3:$N$3)) -> 0.9445819624
A56: 0.3392920066 | B56: =SIN($A56+2*PI()*$F$2)+$E$2*SUM($E$4:$N$4*SIN($A56*$E$5:$N$5*$E$6:$N$6+2*PI()*$E$3:$N$3)) -> 0.6641766829
A57: 0.3455751919 | B57: =SIN($A57+2*PI()*$F$2)+$E$2*SUM($E$4:$N$4*SIN($A57*$E$5:$N$5*$E$6:$N$6+2*PI()*$E$3:$N$3)) -> 0.7849511137
A58: 0.3518583772 | B58: =SIN($A58+2*PI()*$F$2)+$E$2*SUM($E$4:$N$4*SIN($A58*$E$5:$N$5*$E$6:$N$6+2*PI()*$E$3:$N$3)) -> 0.3628234751
A59: 0.3581415625 | B59: =SIN($A59+2*PI()*$F$2)+$E$2*SUM($E$4:$N$4*SIN($A59*$E$5:$N$5*$E$6:$N$6+2*PI()*$E$3:$N$3)) -> 1.014259247
A60: 0.3644247478 | B60: =SIN($A60+2*PI()*$F$2)+$E$2*SUM($E$4:$N$4*SIN($A60*$E$5:$N$5*$E$6:$N$6+2*PI()*$E$3:$N$3)) -> 0.2362069731
A61: 0.3707079331 | B61: =SIN($A61+2*PI()*$F$2)+$E$2*SUM($E$4:$N$4*SIN($A61*$E$5:$N$5*$E$6:$N$6+2*PI()*$E$3:$N$3)) -> 0.7519512968
A62: 0.3769911184 | B62: =SIN($A62+2*PI()*$F$2)+$E$2*SUM($E$4:$N$4*SIN($A62*$E$5:$N$5*$E$6:$N$6+2*PI()*$E$3:$N$3)) -> 0.05898089774
A63: 0.3832743037 | B63: =SIN($A63+2*PI()*$F$2)+$E$2*SUM($E$4:$N$4*SIN($A63*$E$5:$N$5*$E$6:$N$6+2*PI()*$E$3:$N$3)) -> 0.4289446135
A64: 0.389557489 | B64: =SIN($A64+2*PI()*$F$2)+$E$2*SUM($E$4:$N$4*SIN($A64*$E$5:$N$5*$E$6:$N$6+2*PI()*$E$3:$N$3)) -> 0.1942897936
A65: 0.3958406744 | B65: =SIN($A65+2*PI()*$F$2)+$E$2*SUM($E$4:$N$4*SIN($A65*$E$5:$N$5*$E$6:$N$6+2*PI()*$E$3:$N$3)) -> 0.169388061
A66: 0.4021238597 | B66: =SIN($A66+2*PI()*$F$2)+$E$2*SUM($E$4:$N$4*SIN($A66*$E$5:$N$5*$E$6:$N$6+2*PI()*$E$3:$N$3)) -> 0.5026156193
A67: 0.408407045 | B67: =SIN($A67+2*PI()*$F$2)+$E$2*SUM($E$4:$N$4*SIN($A67*$E$5:$N$5*$E$6:$N$6+2*PI()*$E$3:$N$3)) -> 0.08369656685
A68: =2*PI()/1000+A67 -> 0.4146902303 | B68: =SIN($A68+2*PI()*$F$2)+$E$2*SUM($E$4:$N$4*SIN($A68*$E$5:$N$5*$E$6:$N$6+2*PI()*$E$3:$N$3)) -> 0.6144909536
A69: 0.4209734156 | B69: =SIN($A69+2*PI()*$F$2)+$E$2*SUM($E$4:$N$4*SIN($A69*$E$5:$N$5*$E$6:$N$6+2*PI()*$E$3:$N$3)) -> -0.1984504136
A70: 0.4272566009 | B70: =SIN($A70+2*PI()*$F$2)+$E$2*SUM($E$4:$N$4*SIN($A70*$E$5:$N$5*$E$6:$N$6+2*PI()*$E$3:$N$3)) -> 0.4527072587
A71: 0.4335397862 | B71: =SIN($A71+2*PI()*$F$2)+$E$2*SUM($E$4:$N$4*SIN($A71*$E$5:$N$5*$E$6:$N$6+2*PI()*$E$3:$N$3)) -> 0.07047201031
A72: 0.4398229715 | B72: =SIN($A72+2*PI()*$F$2)+$E$2*SUM($E$4:$N$4*SIN($A72*$E$5:$N$5*$E$6:$N$6+2*PI()*$E$3:$N$3)) -> 0.6257057769
A73: 0.4461061568 | B73: =SIN($A73+2*PI()*$F$2)+$E$2*SUM($E$4:$N$4*SIN($A73*$E$5:$N$5*$E$6:$N$6+2*PI()*$E$3:$N$3)) -> 0.3534126043
A74: 0.4523893421 | B74: =SIN($A74+2*PI()*$F$2)+$E$2*SUM($E$4:$N$4*SIN($A74*$E$5:$N$5*$E$6:$N$6+2*PI()*$E$3:$N$3)) -> 0.06884385809
A75: 0.4586725274 | B75: =SIN($A75+2*PI()*$F$2)+$E$2*SUM($E$4:$N$4*SIN($A75*$E$5:$N$5*$E$6:$N$6+2*PI()*$E$3:$N$3)) -> 0.2568401987
A76: 0.4649557127 | B76: =SIN($A76+2*PI()*$F$2)+$E$2*SUM($E$4:$N$4*SIN($A76*$E$5:$N$5*$E$6:$N$6+2*PI()*$E$3:$N$3)) -> -0.01022170069
A77: 0.471238898 | B77: =SIN($A77+2*PI()*$F$2)+$E$2*SUM($E$4:$N$4*SIN($A77*$E$5:$N$5*$E$6:$N$6+2*PI()*$E$3:$N$3)) -> 0.8260240489
A78: 0.4775220833 | B78: =SIN($A78+2*PI()*$F$2)+$E$2*SUM($E$4:$N$4*SIN($A78*$E$5:$N$5*$E$6:$N$6+2*PI()*$E$3:$N$3)) -> 0.1871197075
A79: 0.4838052687 | B79: =SIN($A79+2*PI()*$F$2)+$E$2*SUM($E$4:$N$4*SIN($A79*$E$5:$N$5*$E$6:$N$6+2*PI()*$E$3:$N$3)) -> 0.654109857
A80: 0.490088454 | B80: =SIN($A80+2*PI()*$F$2)+$E$2*SUM($E$4:$N$4*SIN($A80*$E$5:$N$5*$E$6:$N$6+2*PI()*$E$3:$N$3)) -> 0.0602991921
A81: 0.4963716393 | B81: =SIN($A81+2*PI()*$F$2)+$E$2*SUM($E$4:$N$4*SIN($A81*$E$5:$N$5*$E$6:$N$6+2*PI()*$E$3:$N$3)) -> 0.6185635569
A82: 0.5026548246 | B82: =SIN($A82+2*PI()*$F$2)+$E$2*SUM($E$4:$N$4*SIN($A82*$E$5:$N$5*$E$6:$N$6+2*PI()*$E$3:$N$3)) -> 0.7166290795
A83: 0.5089380099 | B83: =SIN($A83+2*PI()*$F$2)+$E$2*SUM($E$4:$N$4*SIN($A83*$E$5:$N$5*$E$6:$N$6+2*PI()*$E$3:$N$3)) -> 0.7822161108
A84: 0.5152211952 | B84: =SIN($A84+2*PI()*$F$2)+$E$2*SUM($E$4:$N$4*SIN($A84*$E$5:$N$5*$E$6:$N$6+2*PI()*$E$3:$N$3)) -> 1.035857065
A85: 0.5215043805 | B85: =SIN($A85+2*PI()*$F$2)+$E$2*SUM($E$4:$N$4*SIN($A85*$E$5:$N$5*$E$6:$N$6+2*PI()*$E$3:$N$3)) -> 0.5734395217
A86: 0.5277875658 | B86: =SIN($A86+2*PI()*$F$2)+$E$2*SUM($E$4:$N$4*SIN($A86*$E$5:$N$5*$E$6:$N$6+2*PI()*$E$3:$N$3)) -> 1.213133887
A87: 0.5340707511 | B87: =SIN($A87+2*PI()*$F$2)+$E$2*SUM($E$4:$N$4*SIN($A87*$E$5:$N$5*$E$6:$N$6+2*PI()*$E$3:$N$3)) -> 0.6643132125
A88: 0.5403539364 | B88: =SIN($A88+2*PI()*$F$2)+$E$2*SUM($E$4:$N$4*SIN($A88*$E$5:$N$5*$E$6:$N$6+2*PI()*$E$3:$N$3)) -> 1.297921788
A89: 0.5466371217 | B89: =SIN($A89+2*PI()*$F$2)+$E$2*SUM($E$4:$N$4*SIN($A89*$E$5:$N$5*$E$6:$N$6+2*PI()*$E$3:$N$3)) -> 0.8132072992
A90: 0.552920307 | B90: =SIN($A90+2*PI()*$F$2)+$E$2*SUM($E$4:$N$4*SIN($A90*$E$5:$N$5*$E$6:$N$6+2*PI()*$E$3:$N$3)) -> 1.144640609
A91: 0.5592034923 | B91: =SIN($A91+2*PI()*$F$2)+$E$2*SUM($E$4:$N$4*SIN($A91*$E$5:$N$5*$E$6:$N$6+2*PI()*$E$3:$N$3)) -> 0.8950688165
A92: 0.5654866776 | B92: =SIN($A92+2*PI()*$F$2)+$E$2*SUM($E$4:$N$4*SIN($A92*$E$5:$N$5*$E$6:$N$6+2*PI()*$E$3:$N$3)) -> 0.6305267868
A93: 0.571769863 | B93: =SIN($A93+2*PI()*$F$2)+$E$2*SUM($E$4:$N$4*SIN($A93*$E$5:$N$5*$E$6:$N$6+2*PI()*$E$3:$N$3)) -> 0.7649549817
A94: 0.5780530483 | B94: =SIN($A94+2*PI()*$F$2)+$E$2*SUM($E$4:$N$4*SIN($A94*$E$5:$N$5*$E$6:$N$6+2*PI()*$E$3:$N$3)) -> 0.3677818744
A95: 0.5843362336 | B95: =SIN($A95+2*PI()*$F$2)+$E$2*SUM($E$4:$N$4*SIN($A95*$E$5:$N$5*$E$6:$N$6+2*PI()*$E$3:$N$3)) -> 1.011046351
A96: 0.5906194189 | B96: =SIN($A96+2*PI()*$F$2)+$E$2*SUM($E$4:$N$4*SIN($A96*$E$5:$N$5*$E$6:$N$6+2*PI()*$E$3:$N$3)) -> 0.3560947902
A97: 0.5969026042 | B97: =SIN($A97+2*PI()*$F$2)+$E$2*SUM($E$4:$N$4*SIN($A97*$E$5:$N$5*$E$6:$N$6+2*PI()*$E$3:$N$3)) -> 0.6759297529
A98: 0.6031857895 | B98: =SIN($A98+2*PI()*$F$2)+$E$2*SUM($E$4:$N$4*SIN($A98*$E$5:$N$5*$E$6:$N$6+2*PI()*$E$3:$N$3)) -> 0.07659000011
A99: 0.6094689748 | B99: =SIN($A99+2*PI()*$F$2)+$E$2*SUM($E$4:$N$4*SIN($A99*$E$5:$N$5*$E$6:$N$6+2*PI()*$E$3:$N$3)) -> 0.5437634448
A100: 0.6157521601 | B100: =SIN($A100+2*PI()*$F$2)+$E$2*SUM($E$4:$N$4*SIN($A100*$E$5:$N$5*$E$6:$N$6+2*PI()*$E$3:$N$3)) -> 0.7340332405
A101: 0.6220353454 | B101: =SIN($A101+2*PI()*$F$2)+$E$2*SUM($E$4:$N$4*SIN($A101*$E$5:$N$5*$E$6:$N$6+2*PI()*$E$3:$N$3)) -> 0.8001759963
A102: 0.6283185307 | B102: =SIN($A102+2*PI()*$F$2)+$E$2*SUM($E$4:$N$4*SIN($A102*$E$5:$N$5*$E$6:$N$6+2*PI()*$E$3:$N$3)) -> 0.9746955805
A103: =2*PI()/1000+A102 -> 0.634601716 | B103: =SIN($A103+2*PI()*$F$2)+$E$2*SUM($E$4:$N$4*SIN($A103*$E$5:$N$5*$E$6:$N$6+2*PI()*$E$3:$N$3)) -> 0.4948259805
A104: 0.6408849013 | B104: =SIN($A104+2*PI()*$F$2)+$E$2*SUM($E$4:$N$4*SIN($A104*$E$5:$N$5*$E$6:$N$6+2*PI()*$E$3:$N$3)) -> 1.183723036
A105: 0.6471680866 | B105: =SIN($A105+2*PI()*$F$2)+$E$2*SUM($E$4:$N$4*SIN($A105*$E$5:$N$5*$E$6:$N$6+2*PI()*$E$3:$N$3)) -> 0.9571121843
A106: 0.6534512719 | B106: =SIN($A106+2*PI()*$F$2)+$E$2*SUM($E$4:$N$4*SIN($A106*$E$5:$N$5*$E$6:$N$6+2*PI()*$E$3:$N$3)) -> 1.64640022
A107: 0.6597344573 | B107: =SIN($A107+2*PI()*$F$2)+$E$2*SUM($E$4:$N$4*SIN($A107*$E$5:$N$5*$E$6:$N$6+2*PI()*$E$3:$N$3)) -> 1.191212416
A108: 0.6660176426 | B108: =SIN($A108+2*PI()*$F$2)+$E$2*SUM($E$4:$N$4*SIN($A108*$E$5:$N$5*$E$6:$N$6+2*PI()*$E$3:$N$3)) -> 1.357511645
A109: 0.6723008279 | B109: =SIN($A109+2*PI()*$F$2)+$E$2*SUM($E$4:$N$4*SIN($A109*$E$5:$N$5*$E$6:$N$6+2*PI()*$E$3:$N$3)) -> 1.247954382
A110: 0.6785840132 | B110: =SIN($A110+2*PI()*$F$2)+$E$2*SUM($E$4:$N$4*SIN($A110*$E$5:$N$5*$E$6:$N$6+2*PI()*$E$3:$N$3)) -> 1.199067751
A111: 0.6848671985 | B111: =SIN($A111+2*PI()*$F$2)+$E$2*SUM($E$4:$N$4*SIN($A111*$E$5:$N$5*$E$6:$N$6+2*PI()*$E$3:$N$3)) -> 1.434286203
A112: 0.6911503838 | B112: =SIN($A112+2*PI()*$F$2)+$E$2*SUM($E$4:$N$4*SIN($A112*$E$5:$N$5*$E$6:$N$6+2*PI()*$E$3:$N$3)) -> 0.9624155458
A113: 0.6974335691 | B113: =SIN($A113+2*PI()*$F$2)+$E$2*SUM($E$4:$N$4*SIN($A113*$E$5:$N$5*$E$6:$N$6+2*PI()*$E$3:$N$3)) -> 1.322776135
A114: 0.7037167544 | B114: =SIN($A114+2*PI()*$F$2)+$E$2*SUM($E$4:$N$4*SIN($A114*$E$5:$N$5*$E$6:$N$6+2*PI()*$E$3:$N$3)) -> 0.6932969785
A115: 0.7099999397 | B115: =SIN($A115+2*PI()*$F$2)+$E$2*SUM($E$4:$N$4*SIN($A115*$E$5:$N$5*$E$6:$N$6+2*PI()*$E$3:$N$3)) -> 0.9549717946
A116: 0.716283125 | B116: =SIN($A116+2*PI()*$F$2)+$E$2*SUM($E$4:$N$4*SIN($A116*$E$5:$N$5*$E$6:$N$6+2*PI()*$E$3:$N$3)) -> 0.4256061982
A117: 0.7225663103 | B117: =SIN($A117+2*PI()*$F$2)+$E$2*SUM($E$4:$N$4*SIN($A117*$E$5:$N$5*$E$6:$N$6+2*PI()*$E$3:$N$3)) -> 0.6292533698
A118: 0.7288494956 | B118: =SIN($A118+2*PI()*$F$2)+$E$2*SUM($E$4:$N$4*SIN($A118*$E$5:$N$5*$E$6:$N$6+2*PI()*$E$3:$N$3)) -> 0.6404201903
A119: 0.7351326809 | B119: =SIN($A119+2*PI()*$F$2)+$E$2*SUM($E$4:$N$4*SIN($A119*$E$5:$N$5*$E$6:$N$6+2*PI()*$E$3:$N$3)) -> 0.5383997622
A120: 0.7414158662 | B120: =SIN($A120+2*PI()*$F$2)+$E$2*SUM($E$4:$N$4*SIN($A120*$E$5:$N$5*$E$6:$N$6+2*PI()*$E$3:$N$3)) -> 0.5880955991
A121: 0.7476990516 | B121: =SIN($A121+2*PI()*$F$2)+$E$2*SUM($E$4:$N$4*SIN($A121*$E$5:$N$5*$E$6:$N$6+2*PI()*$E$3:$N$3)) -> 0.05354981545
A122: 0.7539822369 | B122: =SIN($A122+2*PI()*$F$2)+$E$2*SUM($E$4:$N$4*SIN($A122*$E$5:$N$5*$E$6:$N$6+2*PI()*$E$3:$N$3)) -> 0.537476159
A123: 0.7602654222 | B123: =SIN($A123+2*PI()*$F$2)+$E$2*SUM($E$4:$N$4*SIN($A123*$E$5:$N$5*$E$6:$N$6+2*PI()*$E$3:$N$3)) -> 0.3669294859
A124: 0.7665486075 | B124: =SIN($A124+2*PI()*$F$2)+$E$2*SUM($E$4:$N$4*SIN($A124*$E$5:$N$5*$E$6:$N$6+2*PI()*$E$3:$N$3)) -> 0.9138417691
A125: 0.7728317928 | B125: =SIN($A125+2*PI()*$F$2)+$E$2*SUM($E$4:$N$4*SIN($A125*$E$5:$N$5*$E$6:$N$6+2*PI()*$E$3:$N$3)) -> 0.4878012199
A126: 0.7791149781 | B126: =SIN($A126+2*PI()*$F$2)+$E$2*SUM($E$4:$N$4*SIN($A126*$E$5:$N$5*$E$6:$N$6+2*PI()*$E$3:$N$3)) -> 0.4759662765
A127: 0.7853981634 | B127: =SIN($A127+2*PI()*$F$2)+$E$2*SUM($E$4:$N$4*SIN($A127*$E$5:$N$5*$E$6:$N$6+2*PI()*$E$3:$N$3)) -> 0.4496549766
A128: 0.7916813487 | B128: =SIN($A128+2*PI()*$F$2)+$E$2*SUM($E$4:$N$4*SIN($A128*$E$5:$N$5*$E$6:$N$6+2*PI()*$E$3:$N$3)) -> 0.5842272816
A129: 0.797964534 | B129: =SIN($A129+2*PI()*$F$2)+$E$2*SUM($E$4:$N$4*SIN($A129*$E$5:$N$5*$E$6:$N$6+2*PI()*$E$3:$N$3)) -> 0.9740076785
A130: 0.8042477193 | B130: =SIN($A130+2*PI()*$F$2)+$E$2*SUM($E$4:$N$4*SIN($A130*$E$5:$N$5*$E$6:$N$6+2*PI()*$E$3:$N$3)) -> 0.5952382823
A131: 0.8105309046 | B131: =SIN($A131+2*PI()*$F$2)+$E$2*SUM($E$4:$N$4*SIN($A131*$E$5:$N$5*$E$6:$N$6+2*PI()*$E$3:$N$3)) -> 0.794673167
A132: 0.8168140899 | B132: =SIN($A132+2*PI()*$F$2)+$E$2*SUM($E$4:$N$4*SIN($A132*$E$5:$N$5*$E$6:$N$6+2*PI()*$E$3:$N$3)) -> 0.3849043328
A133: 0.8230972752 | B133: =SIN($A133+2*PI()*$F$2)+$E$2*SUM($E$4:$N$4*SIN($A133*$E$5:$N$5*$E$6:$N$6+2*PI()*$E$3:$N$3)) -> 0.8224096007
A134: 0.8293804605 | B134: =SIN($A134+2*PI()*$F$2)+$E$2*SUM($E$4:$N$4*SIN($A134*$E$5:$N$5*$E$6:$N$6+2*PI()*$E$3:$N$3)) -> 0.6918561051
A135: 0.8356636459 | B135: =SIN($A135+2*PI()*$F$2)+$E$2*SUM($E$4:$N$4*SIN($A135*$E$5:$N$5*$E$6:$N$6+2*PI()*$E$3:$N$3)) -> 0.8693849592
A136: 0.8419468312 | B136: =SIN($A136+2*PI()*$F$2)+$E$2*SUM($E$4:$N$4*SIN($A136*$E$5:$N$5*$E$6:$N$6+2*PI()*$E$3:$N$3)) -> 0.8582417485
A137: 0.8482300165 | B137: =SIN($A137+2*PI()*$F$2)+$E$2*SUM($E$4:$N$4*SIN($A137*$E$5:$N$5*$E$6:$N$6+2*PI()*$E$3:$N$3)) -> 0.7861260184
A138: 0.8545132018 | B138: =SIN($A138+2*PI()*$F$2)+$E$2*SUM($E$4:$N$4*SIN($A138*$E$5:$N$5*$E$6:$N$6+2*PI()*$E$3:$N$3)) -> 1.005688927
A139: 0.8607963871 | B139: =SIN($A139+2*PI()*$F$2)+$E$2*SUM($E$4:$N$4*SIN($A139*$E$5:$N$5*$E$6:$N$6+2*PI()*$E$3:$N$3)) -> 0.7499834162
A140: 0.8670795724 | B140: =SIN($A140+2*PI()*$F$2)+$E$2*SUM($E$4:$N$4*SIN($A140*$E$5:$N$5*$E$6:$N$6+2*PI()*$E$3:$N$3)) -> 1.136153231
A141: 0.8733627577 | B141: =SIN($A141+2*PI()*$F$2)+$E$2*SUM($E$4:$N$4*SIN($A141*$E$5:$N$5*$E$6:$N$6+2*PI()*$E$3:$N$3)) -> 0.9964007878
A142: 0.879645943 | B142: =SIN($A142+2*PI()*$F$2)+$E$2*SUM($E$4:$N$4*SIN($A142*$E$5:$N$5*$E$6:$N$6+2*PI()*$E$3:$N$3)) -> 1.352105381
A143: 0.8859291283 | B143: =SIN($A143+2*PI()*$F$2)+$E$2*SUM($E$4:$N$4*SIN($A143*$E$5:$N$5*$E$6:$N$6+2*PI()*$E$3:$N$3)) -> 1.07141189
A144: 0.8922123136 | B144: =SIN($A144+2*PI()*$F$2)+$E$2*SUM($E$4:$N$4*SIN($A144*$E$5:$N$5*$E$6:$N$6+2*PI()*$E$3:$N$3)) -> 0.9733046431
A145: 0.8984954989 | B145: =SIN($A145+2*PI()*$F$2)+$E$2*SUM($E$4:$N$4*SIN($A145*$E$5:$N$5*$E$6:$N$6+2*PI()*$E$3:$N$3)) -> 0.9318589391
A146: 0.9047786842 | B146: =SIN($A146+2*PI()*$F$2)+$E$2*SUM($E$4:$N$4*SIN($A146*$E$5:$N$5*$E$6:$N$6+2*PI()*$E$3:$N$3)) -> 0.9847151227
A147: 0.9110618695 | B147: =SIN($A147+2*PI()*$F$2)+$E$2*SUM($E$4:$N$4*SIN($A147*$E$5:$N$5*$E$6:$N$6+2*PI()*$E$3:$N$3)) -> 1.265981447
A148: 0.9173450548 | B148: =SIN($A148+2*PI()*$F$2)+$E$2*SUM($E$4:$N$4*SIN($A148*$E$5:$N$5*$E$6:$N$6+2*PI()*$E$3:$N$3)) -> 0.8811262863
A149: 0.9236282402 | B149: =SIN($A149+2*PI()*$F$2)+$E$2*SUM($E$4:$N$4*SIN($A149*$E$5:$N$5*$E$6:$N$6+2*PI()*$E$3:$N$3)) -> 0.8040777004
A150: 0.9299114255 | B150: =SIN($A150+2*PI()*$F$2)+$E$2*SUM($E$4:$N$4*SIN($A150*$E$5:$N$5*$E$6:$N$6+2*PI()*$E$3:$N$3)) -> 0.4268286688
A151: 0.9361946108 | B151: =SIN($A151+2*PI()*$F$2)+$E$2*SUM($E$4:$N$4*SIN($A151*$E$5:$N$5*$E$6:$N$6+2*PI()*$E$3:$N$3)) -> 0.7420943445
A152: 0.9424777961 | B152: =SIN($A152+2*PI()*$F$2)+$E$2*SUM($E$4:$N$4*SIN($A152*$E$5:$N$5*$E$6:$N$6+2*PI()*$E$3:$N$3)) -> 0.798793119
A153: 0.9487609814 | B153: =SIN($A153+2*PI()*$F$2)+$E$2*SUM($E$4:$N$4*SIN($A153*$E$5:$N$5*$E$6:$N$6+2*PI()*$E$3:$N$3)) -> 0.8204345142
A154: 0.9550441667 | B154: =SIN($A154+2*PI()*$F$2)+$E$2*SUM($E$4:$N$4*SIN($A154*$E$5:$N$5*$E$6:$N$6+2*PI()*$E$3:$N$3)) -> 0.6795395813
A155: 0.961327352 | B155: =SIN($A155+2*PI()*$F$2)+$E$2*SUM($E$4:$N$4*SIN($A155*$E$5:$N$5*$E$6:$N$6+2*PI()*$E$3:$N$3)) -> 0.5285311896
A156: 0.9676105373 | B156: =SIN($A156+2*PI()*$F$2)+$E$2*SUM($E$4:$N$4*SIN($A156*$E$5:$N$5*$E$6:$N$6+2*PI()*$E$3:$N$3)) -> 0.841256495
A157: 0.9738937226 | B157: =SIN($A157+2*PI()*$F$2)+$E$2*SUM($E$4:$N$4*SIN($A157*$E$5:$N$5*$E$6:$N$6+2*PI()*$E$3:$N$3)) -> 0.9086754227
A158: 0.9801769079 | B158: =SIN($A158+2*PI()*$F$2)+$E$2*SUM($E$4:$N$4*SIN($A158*$E$5:$N$5*$E$6:$N$6+2*PI()*$E$3:$N$3)) -> 1.2224721
A159: 0.9864600932 | B159: =SIN($A159+2*PI()*$F$2)+$E$2*SUM($E$4:$N$4*SIN($A159*$E$5:$N$5*$E$6:$N$6+2*PI()*$E$3:$N$3)) -> 1.120494563
A160: 0.9927432785 | B160: =SIN($A160+2*PI()*$F$2)+$E$2*SUM($E$4:$N$4*SIN($A160*$E$5:$N$5*$E$6:$N$6+2*PI()*$E$3:$N$3)) -> 1.284490662
A161: 0.9990264638 | B161: =SIN($A161+2*PI()*$F$2)+$E$2*SUM($E$4:$N$4*SIN($A161*$E$5:$N$5*$E$6:$N$6+2*PI()*$E$3:$N$3)) -> 1.303786759
A162: 1.005309649 | B162: =SIN($A162+2*PI()*$F$2)+$E$2*SUM($E$4:$N$4*SIN($A162*$E$5:$N$5*$E$6:$N$6+2*PI()*$E$3:$N$3)) -> 1.358187209
A163: 1.011592834 | B163: =SIN($A163+2*PI()*$F$2)+$E$2*SUM($E$4:$N$4*SIN($A163*$E$5:$N$5*$E$6:$N$6+2*PI()*$E$3:$N$3)) -> 1.452486785
A164: 1.01787602 | B164: =SIN($A164+2*PI()*$F$2)+$E$2*SUM($E$4:$N$4*SIN($A164*$E$5:$N$5*$E$6:$N$6+2*PI()*$E$3:$N$3)) -> 1.428345833
A165: 1.024159205 | B165: =SIN($A165+2*PI()*$F$2)+$E$2*SUM($E$4:$N$4*SIN($A165*$E$5:$N$5*$E$6:$N$6+2*PI()*$E$3:$N$3)) -> 1.571831168
A166: 1.03044239 | B166: =SIN($A166+2*PI()*$F$2)+$E$2*SUM($E$4:$N$4*SIN($A166*$E$5:$N$5*$E$6:$N$6+2*PI()*$E$3:$N$3)) -> 1.32498386
A167: =2*PI()/1000+A166 -> 1.036725576 | B167: =SIN($A167+2*PI()*$F$2)+$E$2*SUM($E$4:$N$4*SIN($A167*$E$5:$N$5*$E$6:$N$6+2*PI()*$E$3:$N$3)) -> 1.164852513
A168: 1.043008761 | B168: =SIN($A168+2*PI()*$F$2)+$E$2*SUM($E$4:$N$4*SIN($A168*$E$5:$N$5*$E$6:$N$6+2*PI()*$E$3:$N$3)) -> 0.8994164669
A169: 1.049291946 | B169: =SIN($A169+2*PI()*$F$2)+$E$2*SUM($E$4:$N$4*SIN($A169*$E$5:$N$5*$E$6:$N$6+2*PI()*$E$3:$N$3)) -> 0.9407593816
A170: 1.055575132 | B170: =SIN($A170+2*PI()*$F$2)+$E$2*SUM($E$4:$N$4*SIN($A170*$E$5:$N$5*$E$6:$N$6+2*PI()*$E$3:$N$3)) -> 1.003670128
A171: 1.061858317 | B171: =SIN($A171+2*PI()*$F$2)+$E$2*SUM($E$4:$N$4*SIN($A171*$E$5:$N$5*$E$6:$N$6+2*PI()*$E$3:$N$3)) -> 0.8090577021
A172: 1.068141502 | B172: =SIN($A172+2*PI()*$F$2)+$E$2*SUM($E$4:$N$4*SIN($A172*$E$5:$N$5*$E$6:$N$6+2*PI()*$E$3:$N$3)) -> 0.5383004827
A173: 1.074424688 | B173: =SIN($A173+2*PI()*$F$2)+$E$2*SUM($E$4:$N$4*SIN($A173*$E$5:$N$5*$E$6:$N$6+2*PI()*$E$3:$N$3)) -> 0.2131493606
A174: 1.080707873 | B174: =SIN($A174+2*PI()*$F$2)+$E$2*SUM($E$4:$N$4*SIN($A174*$E$5:$N$5*$E$6:$N$6+2*PI()*$E$3:$N$3)) -> 0.3585621658
A175: 1.086991058 | B175: =SIN($A175+2*PI()*$F$2)+$E$2*SUM($E$4:$N$4*SIN($A175*$E$5:$N$5*$E$6:$N$6+2*PI()*$E$3:$N$3)) -> 0.5052427903
A176: 1.093274243 | B176: =SIN($A176+2*PI()*$F$2)+$E$2*SUM($E$4:$N$4*SIN($A176*$E$5:$N$5*$E$6:$N$6+2*PI()*$E$3:$N$3)) -> 0.5807092128
A177: 1.099557429 | B177: =SIN($A177+2*PI()*$F$2)+$E$2*SUM($E$4:$N$4*SIN($A177*$E$5:$N$5*$E$6:$N$6+2*PI()*$E$3:$N$3)) -> 0.4198287151
A178: 1.105840614 | B178: =SIN($A178+2*PI()*$F$2)+$E$2*SUM($E$4:$N$4*SIN($A178*$E$5:$N$5*$E$6:$N$6+2*PI()*$E$3:$N$3)) -> 0.2508141498
A179: 1.112123799 | B179: =SIN($A179+2*PI()*$F$2)+$E$2*SUM($E$4:$N$4*SIN($A179*$E$5:$N$5*$E$6:$N$6+2*PI()*$E$3:$N$3)) -> 0.4319690075
A180: 1.118406985 | B180: =SIN($A180+2*PI()*$F$2)+$E$2*SUM($E$4:$N$4*SIN($A180*$E$5:$N$5*$E$6:$N$6+2*PI()*$E$3:$N$3)) -> 0.5820321892
A181: 1.12469017 | B181: =SIN($A181+2*PI()*$F$2)+$E$2*SUM($E$4:$N$4*SIN($A181*$E$5:$N$5*$E$6:$N$6+2*PI()*$E$3:$N$3)) -> 0.8130859683
A182: 1.130973355 | B182: =SIN($A182+2*PI()*$F$2)+$E$2*SUM($E$4:$N$4*SIN($A182*$E$5:$N$5*$E$6:$N$6+2*PI()*$E$3:$N$3)) -> 0.7206351459
A183: 1.137256541 | B183: =SIN($A183+2*PI()*$F$2)+$E$2*SUM($E$4:$N$4*SIN($A183*$E$5:$N$5*$E$6:$N$6+2*PI()*$E$3:$N$3)) -> 0.7220526724
A184: 1.143539726 | B184: =SIN($A184+2*PI()*$F$2)+$E$2*SUM($E$4:$N$4*SIN($A184*$E$5:$N$5*$E$6:$N$6+2*PI()*$E$3:$N$3)) -> 0.7420642392
A185: 1.149822911 | B185: =SIN($A185+2*PI()*$F$2)+$E$2*SUM($E$4:$N$4*SIN($A185*$E$5:$N$5*$E$6:$N$6+2*PI()*$E$3:$N$3)) -> 0.7549057563
A186: 1.156106097 | B186: =SIN($A186+2*PI()*$F$2)+$E$2*SUM($E$4:$N$4*SIN($A186*$E$5:$N$5*$E$6:$N$6+2*PI()*$E$3:$N$3)) -> 0.8768204668
A187: 1.162389282 | B187: =SIN($A187+2*PI()*$F$2)+$E$2*SUM($E$4:$N$4*SIN($A187*$E$5:$N$5*$E$6:$N$6+2*PI()*$E$3:$N$3)) -> 0.8007620644
A188: 1.168672467 | B188: =SIN($A188+2*PI()*$F$2)+$E$2*SUM($E$4:$N$4*SIN($A188*$E$5:$N$5*$E$6:$N$6+2*PI()*$E$3:$N$3)) -> 0.9864851043
A189: 1.174955652 | B189: =SIN($A189+2*PI()*$F$2)+$E$2*SUM($E$4:$N$4*SIN($A189*$E$5:$N$5*$E$6:$N$6+2*PI()*$E$3:$N$3)) -> 0.8383971543
A190: 1.181238838 | B190: =SIN($A190+2*PI()*$F$2)+$E$2*SUM($E$4:$N$4*SIN($A190*$E$5:$N$5*$E$6:$N$6+2*PI()*$E$3:$N$3)) -> 0.8322006633
A191: 1.187522023 | B191: =SIN($A191+2*PI()*$F$2)+$E$2*SUM($E$4:$N$4*SIN($A191*$E$5:$N$5*$E$6:$N$6+2*PI()*$E$3:$N$3)) -> 0.6858418887
A192: 1.193805208 | B192: =SIN($A192+2*PI()*$F$2)+$E$2*SUM($E$4:$N$4*SIN($A192*$E$5:$N$5*$E$6:$N$6+2*PI()*$E$3:$N$3)) -> 0.7939245941
A193: 1.200088394 | B193: =SIN($A193+2*PI()*$F$2)+$E$2*SUM($E$4:$N$4*SIN($A193*$E$5:$N$5*$E$6:$N$6+2*PI()*$E$3:$N$3)) -> 1.05858336
A194: 1.206371579 | B194: =SIN($A194+2*PI()*$F$2)+$E$2*SUM($E$4:$N$4*SIN($A194*$E$5:$N$5*$E$6:$N$6+2*PI()*$E$3:$N$3)) -> 1.017966466
A195: 1.212654764 | B195: =SIN($A195+2*PI()*$F$2)+$E$2*SUM($E$4:$N$4*SIN($A195*$E$5:$N$5*$E$6:$N$6+2*PI()*$E$3:$N$3)) -> 1.02618567
A196: 1.21893795 | B196: =SIN($A196+2*PI()*$F$2)+$E$2*SUM($E$4:$N$4*SIN($A196*$E$5:$N$5*$E$6:$N$6+2*PI()*$E$3:$N$3)) -> 0.6707331006
A197: 1.225221135 | B197: =SIN($A197+2*PI()*$F$2)+$E$2*SUM($E$4:$N$4*SIN($A197*$E$5:$N$5*$E$6:$N$6+2*PI()*$E$3:$N$3)) -> 0.9467788212
A198: 1.23150432 | B198: =SIN($A198+2*PI()*$F$2)+$E$2*SUM($E$4:$N$4*SIN($A198*$E$5:$N$5*$E$6:$N$6+2*PI()*$E$3:$N$3)) -> 1.034863826
A199: 1.237787506 | B199: =SIN($A199+2*PI()*$F$2)+$E$2*SUM($E$4:$N$4*SIN($A199*$E$5:$N$5*$E$6:$N$6+2*PI()*$E$3:$N$3)) -> 1.279433178
A200: 1.244070691 | B200: =SIN($A200+2*PI()*$F$2)+$E$2*SUM($E$4:$N$4*SIN($A200*$E$5:$N$5*$E$6:$N$6+2*PI()*$E$3:$N$3)) -> 1.063494274
... 802 more rows
